[Event "Championnat du monde jeunes U10"]
[Date "2024.11.15"]
[White "Lenkov, Stanislav"]
[Black "Zhang, Junyi"]
[WhiteElo "1693"]
[BlackElo "2061"]
[Round "1.10"]
[Result "0-1"]
[TimeControl "5400+30"]

1. e4 {[%clk 1:30:41]} 1... c5 {[%clk 1:30:29]} 2. Nf3 {[%clk 1:31:04]} 2... e6
{[%clk 1:30:48]} 3. d4 {[%clk 1:30:40]} 3... cxd4 {[%clk 1:31:05]} 4. Nxd4
{[%clk 1:30:26]} 4... Nf6 {[%clk 1:31:25]} 5. Nc3 {[%clk 1:30:16]} 5... Nc6
{[%clk 1:31:45]} 6. Ndb5 Bc5 {[%clk 1:31:58]} 7. Bf4 {[%clk 1:30:52]} 7... O-O
{[%clk 1:31:53]} 8. Bc7 {[%clk 1:31:14]} 8... Qe7 {[%clk 1:32:17]} 9. Bd6 {[%clk
1:30:52]} 9... Bxd6 {[%clk 1:32:35]} 10. Qxd6 {[%clk 1:31:17]} 10... Qd8 {[%clk
1:33:01]} 11. O-O-O {[%clk 1:30:58]} 11... a6 {[%clk 1:33:13]} 12. Nd4 {[%clk
1:31:16]} 12... Ne7 {[%clk 1:33:37]} 13. h4 {[%clk 1:31:40]} 13... b5 {[%clk
1:33:47]} 14. a3 {[%clk 1:30:54]} 14... Ne8 {[%clk 1:27:34]} 15. Qh2 {[%clk
1:30:14]} 15... Bb7 {[%clk 1:25:29]} 16. g4 {[%clk 1:28:46]} 16... Rc8 {[%clk
1:24:46]} 17. f3 {[%clk 1:28:36]} 17... Nc6 {[%clk 1:06:30]} 18. g5 {[%clk
1:21:04]} 18... Qe7 {[%clk 0:56:35]} 19. Nxc6 Rxc6 {[%clk 0:55:39]} 20. Rd4
{[%clk 1:18:36]} 20... Bc8 {[%clk 0:37:29]} 21. Bg2 {[%clk 1:15:05]} 21... Nd6
{[%clk 0:36:56]} 22. f4 {[%clk 1:14:29]} 22... Rxc3 {[%clk 0:33:37]} 23. bxc3
{[%clk 1:11:33]} 23... Nc4 {[%clk 0:33:43]} 24. Qh3 {[%clk 1:10:21]} 24... Qxa3+
{[%clk 0:33:05]} 25. Kd1 {[%clk 1:09:14]} 25... e5 {[%clk 0:31:03]} 26. Rxc4
{[%clk 1:05:49]} 26... bxc4 {[%clk 0:31:31]} 27. fxe5 d6 {[%clk 0:30:54]} 28.
Qg3 {[%clk 1:02:14]} 28... dxe5 {[%clk 0:30:45]} 29. Qxe5 {[%clk 0:58:32]} 29...
Rd8+ {[%clk 0:29:59]} 30. Ke1 {[%clk 0:58:06]} 30... Qc1+ {[%clk 0:29:50]} 31.
Kf2 {[%clk 0:58:25]} 31... Qxc2+ {[%clk 0:26:11]} 32. Kg3 {[%clk 0:58:05]} 32...
Be6 {[%clk 0:19:06]} 33. Ra1 {[%clk 0:57:16]} 33... Qd3+ {[%clk 0:09:53]} 34.
Kf2 {[%clk 0:56:05]} 34... Qd6 {[%clk 0:07:12]} 35. Qa5 {[%clk 0:56:00]} 35...
Qf4+ {[%clk 0:05:28]} 36. Kg1 {[%clk 0:55:27]} 36... Qe3+ {[%clk 0:04:27]} 37.
Kh1 {[%clk 0:55:25]} 37... Rf8 {[%clk 0:02:25]} 38. Qe5 {[%clk 0:54:48]} 38...
Qf2 39. Rxa6 {[%clk 0:49:50]} 39... Qxh4+ {[%clk 0:02:11]} 40. Kg1 {[%clk
0:50:18]} 40... Qe1+ {[%clk 0:01:48]} 41. Kh2 {[%clk 0:50:43]} 41... Rd8 {[%clk
0:01:43]} 42. Rd6 {[%clk 0:45:38]} 42... Re8 {[%clk 0:00:59]} 43. Ra6 {[%clk
0:43:24]} 43... Qh4+ {[%clk 0:01:02]} 44. Kg1 {[%clk 0:43:47]} 44... Qg4 {[%clk
0:01:09]} 45. Rb6 {[%clk 0:43:04]} 45... Qd1+ {[%clk 0:01:03]} 46. Kh2 {[%clk
0:43:25]} 46... Qd8 {[%clk 0:01:09]} 47. Rd6 {[%clk 0:41:58]} 47... Qb8 {[%clk
0:00:54]} 48. Qd4 {[%clk 0:41:43]} 48... Qc7 {[%clk 0:00:34]} 49. e5 {[%clk
0:41:23]} 49... Qe7 {[%clk 0:00:56]} 50. Bc6 {[%clk 0:41:11]} 50... Rb8 {[%clk
0:00:43]} 51. Qf4 {[%clk 0:41:19]} 51... Rb2+ {[%clk 0:00:51]} 52. Kg3 {[%clk
0:41:33]} 52... Rb8 {[%clk 0:01:06]} 53. Bd5 {[%clk 0:39:05]} 53... Rd8 {[%clk
0:00:46]} 54. Bxc4 {[%clk 0:37:21]} 54... Bxc4 {[%clk 0:01:05]} 55. Rxd8+ {[%clk
0:37:26]} 55... Qxd8 {[%clk 0:01:25]} 56. Qxc4 {[%clk 0:37:38]} 56... Qxg5+
{[%clk 0:01:54]} 57. Kf3 {[%clk 0:37:59]} 57... h5 {[%clk 0:01:45]} 58. Qc8+
{[%clk 0:36:17]} 58... Kh7 {[%clk 0:02:13]} 59. Qe8 {[%clk 0:36:20]} 59... Qf5+
{[%clk 0:02:32]} 60. Kg3 {[%clk 0:35:16]} 60... Qd3+ {[%clk 0:02:09]} 61. Kh4
{[%clk 0:35:39]} 61... Qf5 {[%clk 0:01:19]} 62. Kg3 {[%clk 0:35:15]} 62... Qd3+
{[%clk 0:01:18]} 63. Kh4 {[%clk 0:34:18]} 63... Qf3 {[%clk 0:01:07]} 64. Qc8
{[%clk 0:34:36]} 64... Qf4+ {[%clk 0:01:17]} 65. Kh3 {[%clk 0:34:24]} 65... Qxe5
{[%clk 0:01:46]} 66. c4 {[%clk 0:34:24]} 66... Qe3+ {[%clk 0:01:43]} 67. Kg2
{[%clk 0:34:16]} 67... Qe4+ {[%clk 0:02:08]} 68. Kg3 {[%clk 0:33:40]} 68... h4+
{[%clk 0:02:07]} 69. Kh3 {[%clk 0:33:39]} 69... Qf4 {[%clk 0:01:59]} 70. Kg2
{[%clk 0:33:15]} 70... Qg3+ {[%clk 0:02:19]} 71. Kh1 {[%clk 0:33:06]} 71... h3
{[%clk 0:02:28]} 72. Qf5+ {[%clk 0:32:32]} 72... Kh6 {[%clk 0:02:46]} 73. Qe4
{[%clk 0:31:44]} 73... Qg2+ {[%clk 0:03:02]} 0-1

[Variant "Standard"]
[Site "Europe Echecs"]

[Event "Championnat du monde jeunes U10"]
[Date "2024.11.15"]
[White "Shangin, Lev"]
[Black "Lee, Yugeon"]
[WhiteElo "2056"]
[BlackElo "1690"]
[Round "1.11"]
[Result "1-0"]
[TimeControl "5400+30"]

1. d4 {[%clk 1:30:54]} 1... Nf6 {[%clk 1:30:39]} 2. c4 {[%clk 1:31:01]} 2... g6
{[%clk 1:30:56]} 3. Nc3 {[%clk 1:30:53]} 3... d5 {[%clk 1:31:18]} 4. cxd5 {[%clk
1:30:53]} 4... Nxd5 {[%clk 1:31:39]} 5. e4 {[%clk 1:31:17]} 5... Nxc3 {[%clk
1:31:55]} 6. bxc3 {[%clk 1:31:40]} 6... Bg7 {[%clk 1:31:55]} 7. Bc4 {[%clk
1:31:45]} 7... c5 {[%clk 1:31:41]} 8. Ne2 {[%clk 1:31:52]} 8... O-O {[%clk
1:29:52]} 9. O-O {[%clk 1:31:58]} 9... cxd4 {[%clk 1:27:48]} 10. cxd4 {[%clk
1:31:39]} 10... Nc6 {[%clk 1:26:50]} 11. Be3 {[%clk 1:30:52]} 11... Qa5 {[%clk
1:20:49]} 12. Rc1 {[%clk 1:27:35]} 12... e6 {[%clk 1:16:06]} 13. Qc2 {[%clk
1:22:54]} 13... Rd8 {[%clk 1:07:01]} 14. Rfd1 {[%clk 1:21:13]} 14... b5 {[%clk
0:40:57]} 15. Bb3 {[%clk 1:13:57]} 15... Bb7 {[%clk 0:39:07]} 16. h4 {[%clk
1:02:58]} 16... Rac8 {[%clk 0:35:45]} 17. Qb2 {[%clk 0:58:59]} 17... Nb8 {[%clk
0:31:02]} 18. f3 {[%clk 0:56:00]} 18... b4 {[%clk 0:23:50]} 19. e5 {[%clk
0:53:54]} 19... Rxc1 {[%clk 0:15:06]} 20. Rxc1 {[%clk 0:54:14]} 20... Nc6 {[%clk
0:14:53]} 21. Rc5 {[%clk 0:46:46]} 21... Qb6 {[%clk 0:13:31]} 22. Qc1 {[%clk
0:45:06]} 22... Bf8 {[%clk 0:09:46]} 23. d5 {[%clk 0:42:29]} 23... Bxc5 {[%clk
0:09:16]} 24. Bxc5 {[%clk 0:42:51]} 24... Qb5 {[%clk 0:09:35]} 25. dxc6 {[%clk
0:42:55]} 25... Qxc6 {[%clk 0:08:44]} 26. Qe3 {[%clk 0:42:06]} 26... Ba6 {[%clk
0:06:06]} 27. Ng3 {[%clk 0:37:41]} 27... Rd3 {[%clk 0:03:54]} 28. Qf2 {[%clk
0:37:36]} 28... Rc3 {[%clk 0:03:22]} 29. Ne4 {[%clk 0:37:32]} 29... Rc1+ {[%clk
0:03:40]} 30. Kh2 {[%clk 0:37:56]} 30... Rf1 {[%clk 0:01:10]} 31. Qe3 {[%clk
0:38:09]} 31... Kg7 {[%clk 0:00:37]} 32. Qh6+ {[%clk 0:38:06]} 32... Kxh6 {[%clk
0:00:56]} 33. Bf8+ {[%clk 0:38:33]} 33... Kh5 {[%clk 0:01:19]} 34. g4+ {[%clk
0:39:00]} 34... Kxh4 {[%clk 0:01:15]} 35. Be7+ {[%clk 0:39:21]} 35... g5 {[%clk
0:01:42]} 36. Bxg5# 1-0

[Variant "Standard"]
[Site "Europe Echecs"]

[Event "Championnat du monde jeunes U10"]
[Date "2024.11.15"]
[White "Kazimzade, Mahammad"]
[Black "Xia, Joshua"]
[WhiteElo "1687"]
[BlackElo "2052"]
[Round "1.12"]
[Result "0-1"]
[TimeControl "5400+30"]

1. d4 {[%clk 1:30:56]} 1... Nf6 {[%clk 1:30:53]} 2. c4 {[%clk 1:31:14]} 2... g6
{[%clk 1:31:18]} 3. Nc3 {[%clk 1:31:17]} 3... d5 {[%clk 1:31:44]} 4. Nf3 {[%clk
1:30:07]} 4... Bg7 {[%clk 1:32:06]} 5. g3 {[%clk 1:29:16]} 5... O-O {[%clk
1:32:26]} 6. Bg2 {[%clk 1:28:30]} 6... c6 {[%clk 1:32:49]} 7. O-O {[%clk
1:27:44]} 7... dxc4 {[%clk 1:33:09]} 8. Qc2 {[%clk 1:27:35]} 8... Nd5 {[%clk
1:32:28]} 9. Rd1 {[%clk 1:25:18]} 9... Nxc3 {[%clk 1:30:50]} 10. Qxc3 {[%clk
1:25:16]} 10... b5 {[%clk 1:30:37]} 11. a4 {[%clk 1:23:16]} 11... Qb6 {[%clk
1:29:42]} 12. Bg5 {[%clk 1:21:19]} 12... Re8 {[%clk 1:26:42]} 13. axb5 {[%clk
1:16:59]} 13... cxb5 {[%clk 1:26:57]} 14. b3 {[%clk 1:16:27]} 14... cxb3 {[%clk
1:23:39]} 15. Qxb3 {[%clk 1:16:01]} 15... Bb7 {[%clk 1:23:18]} 16. Rab1 {[%clk
1:13:17]} 16... a6 {[%clk 1:21:24]} 17. d5 {[%clk 1:09:12]} 17... Nd7 {[%clk
1:18:53]} 18. Bh3 {[%clk 1:07:07]} 18... Nc5 {[%clk 1:18:04]} 19. Qb4 {[%clk
1:06:25]} 19... Bc8 {[%clk 1:10:36]} 20. Bg2 {[%clk 1:06:13]} 20... a5 {[%clk
1:05:00]} 21. Qxb5 {[%clk 1:05:39]} 21... Qxb5 {[%clk 1:05:22]} 22. Rxb5 {[%clk
1:06:00]} 22... Ne4 {[%clk 1:05:47]} 23. Bd2 {[%clk 1:01:39]} 23... Ba6 {[%clk
1:05:45]} 24. Rxa5 {[%clk 0:59:57]} 24... Bxe2 {[%clk 1:06:07]} 25. Rxa8 {[%clk
0:59:56]} 25... Rxa8 {[%clk 1:06:24]} 26. Re1 {[%clk 1:00:20]} 26... Bxf3 {[%clk
1:06:49]} 27. Rxe4 {[%clk 1:00:24]} 27... Bxe4 {[%clk 1:06:48]} 28. Bxe4 {[%clk
1:00:53]} 28... Bd4 {[%clk 1:06:57]} 29. Kf1 {[%clk 0:54:18]} 29... Ra2 {[%clk
1:06:36]} 30. Be1 {[%clk 0:54:33]} 30... Kg7 {[%clk 1:06:38]} 31. Bf3 {[%clk
0:53:10]} 31... Kf6 {[%clk 1:06:48]} 32. Bg2 {[%clk 0:53:12]} 32... Ke5 {[%clk
1:06:36]} 33. Bf3 {[%clk 0:53:17]} 33... Kd6 {[%clk 1:06:33]} 34. Bb4+ {[%clk
0:53:17]} 34... Bc5 {[%clk 1:06:41]} 35. Be1 {[%clk 0:53:31]} 35... Kc7 {[%clk
1:06:28]} 36. Bg2 {[%clk 0:52:28]} 36... Kb6 {[%clk 1:06:47]} 37. Bf3 {[%clk
0:52:34]} 37... Bd4 {[%clk 1:07:06]} 38. Be4 {[%clk 0:51:20]} 38... Kc5 {[%clk
1:07:30]} 39. Bf3 {[%clk 0:51:44]} 39... Kc4 {[%clk 1:07:21]} 40. Be4 {[%clk
0:51:22]} 40... Bc3 {[%clk 1:06:57]} 41. Bxc3 {[%clk 0:51:05]} 41... Kxc3 {[%clk
1:07:22]} 42. Kg2 {[%clk 0:50:48]} 42... f5 {[%clk 1:07:17]} 43. Bf3 {[%clk
0:50:55]} 43... Kd2 {[%clk 1:07:40]} 44. Kf1 {[%clk 0:50:50]} 44... Ra1+ {[%clk
1:08:05]} 45. Kg2 {[%clk 0:50:57]} 45... Ke1 {[%clk 1:08:30]} 46. d6 {[%clk
0:51:02]} 46... exd6 {[%clk 1:08:50]} 47. Bd5 {[%clk 0:51:16]} 47... Rd1 {[%clk
1:09:11]} 48. Bg8 {[%clk 0:51:40]} 48... Rd2 {[%clk 1:09:32]} 49. Bxh7 g5 {[%clk
1:09:48]} 0-1

[Variant "Standard"]
[Site "Europe Echecs"]

[Event "Championnat du monde jeunes U10"]
[Date "2024.11.15"]
[White "Filipovs, Sergejs"]
[Black "Yao, Lucas Mason Pin Qian"]
[WhiteElo "2012"]
[BlackElo "1687"]
[Round "1.13"]
[Result "1-0"]
[TimeControl "5400+30"]

1. e4 {[%clk 1:30:58]} 1... d5 {[%clk 1:30:50]} 2. exd5 {[%clk 1:31:21]} 2...
Qxd5 {[%clk 1:31:12]} 3. Nc3 {[%clk 1:31:43]} 3... Qa5 {[%clk 1:31:33]} 4. d4
{[%clk 1:31:52]} 4... Nf6 {[%clk 1:31:49]} 5. Nf3 {[%clk 1:32:09]} 5... Bf5
{[%clk 1:31:53]} 6. Bd3 {[%clk 1:30:55]} 6... Bxd3 {[%clk 1:31:18]} 7. Qxd3
{[%clk 1:31:17]} 7... Nc6 {[%clk 1:30:31]} 8. O-O {[%clk 1:29:15]} 8... O-O-O
{[%clk 1:30:26]} 9. Be3 {[%clk 1:26:47]} 9... h6 {[%clk 1:29:37]} 10. a3 {[%clk
1:25:58]} 10... e6 {[%clk 1:27:03]} 11. b4 {[%clk 1:24:11]} 11... Qf5 {[%clk
1:27:07]} 12. Qxf5 {[%clk 1:24:16]} 12... exf5 {[%clk 1:27:27]} 13. b5 {[%clk
1:24:20]} 13... Ne7 {[%clk 1:27:42]} 14. Ne5 {[%clk 1:24:21]} 14... Rg8 {[%clk
1:27:15]} 15. Nxf7 {[%clk 1:24:02]} 15... Re8 {[%clk 1:27:31]} 16. Rfe1 {[%clk
1:20:55]} 16... g5 {[%clk 1:25:42]} 17. Bd2 {[%clk 1:19:16]} 17... Ng6 {[%clk
1:21:05]} 18. Rxe8+ {[%clk 1:17:10]} 18... Nxe8 {[%clk 1:21:24]} 19. Re1 {[%clk
1:16:25]} 19... Kd7 {[%clk 1:16:58]} 20. Nd5 {[%clk 1:13:52]} 20... Bg7 {[%clk
1:15:45]} 21. Bb4 {[%clk 1:11:27]} 21... Nd6 {[%clk 1:13:08]} 22. Ne5+ {[%clk
1:08:20]} 22... Nxe5 {[%clk 1:04:59]} 23. dxe5 {[%clk 1:08:43]} 23... Nxb5
{[%clk 1:00:40]} 24. e6+ {[%clk 1:08:45]} 24... Ke8 {[%clk 1:01:00]} 25. c4
{[%clk 1:08:58]} 25... Nd4 {[%clk 0:59:00]} 26. Nxc7+ {[%clk 1:09:05]} 26... Kd8
{[%clk 0:58:51]} 27. Bd6 {[%clk 1:05:35]} 27... Re8 {[%clk 0:56:27]} 28. Nxe8
{[%clk 1:05:58]} 28... Kxe8 {[%clk 0:56:48]} 29. Rb1 {[%clk 1:04:57]} 29... b6
{[%clk 0:54:41]} 30. c5 {[%clk 1:04:40]} 30... Nxe6 {[%clk 0:53:53]} 31. cxb6
{[%clk 1:05:03]} 31... axb6 {[%clk 0:53:49]} 32. Rxb6 {[%clk 1:05:20]} 32... Bd4
{[%clk 0:53:09]} 33. Rb7 {[%clk 1:05:03]} 33... Kd8 {[%clk 0:51:54]} 34. Rf7
{[%clk 1:02:58]} 34... f4 {[%clk 0:51:26]} 35. Re7 {[%clk 1:03:01]} 35... Ng7
{[%clk 0:50:47]} 36. Re4 {[%clk 1:02:57]} 36... Bc3 {[%clk 0:49:25]} 37. Be5
{[%clk 1:03:11]} 37... Bxe5 {[%clk 0:49:09]} 38. Rxe5 {[%clk 1:03:36]} 38... Kd7
{[%clk 0:49:22]} 39. a4 {[%clk 1:03:56]} 39... Ne6 {[%clk 0:49:09]} 40. a5
{[%clk 1:04:12]} 40... Nc7 {[%clk 0:49:05]} 41. h4 {[%clk 1:03:43]} 41... gxh4
{[%clk 0:48:35]} 42. Rh5 {[%clk 1:04:02]} 42... Kc6 {[%clk 0:47:45]} 43. Rxh6+
{[%clk 1:04:21]} 43... Kb5 {[%clk 0:48:05]} 44. Rxh4 {[%clk 1:04:40]} 44... Kxa5
{[%clk 0:48:10]} 45. Rxf4 {[%clk 1:05:03]} 45... Kb5 {[%clk 0:47:51]} 46. g4
{[%clk 1:05:17]} 46... Kc5 {[%clk 0:47:58]} 47. Kg2 {[%clk 1:05:20]} 47... Kd5
{[%clk 0:48:10]} 48. Kg3 {[%clk 1:05:44]} 48... Ke5 {[%clk 0:48:19]} 49. Rf8
{[%clk 1:06:02]} 49... Ke6 {[%clk 0:47:57]} 50. f4 {[%clk 1:06:17]} 50... Ke7
{[%clk 0:48:16]} 51. Rh8 {[%clk 1:06:38]} 51... Nd5 {[%clk 0:47:54]} 52. g5
{[%clk 1:06:58]} 52... Ke6 {[%clk 0:48:01]} 53. Re8+ {[%clk 1:07:02]} 53... Kf7
{[%clk 0:48:18]} 54. Re5 {[%clk 1:07:26]} 54... Ne7 {[%clk 0:48:26]} 55. f5
{[%clk 1:07:40]} 55... Ng8 {[%clk 0:48:04]} 56. f6 {[%clk 1:07:51]} 56... Kg6
{[%clk 0:47:26]} 57. Kg4 {[%clk 1:08:11]} 57... Nxf6+ {[%clk 0:47:38]} 58. gxf6
{[%clk 1:08:35]} 58... Kxf6 {[%clk 0:47:55]} 59. Kf4 {[%clk 1:08:57]} 59... Kg6
{[%clk 0:47:45]} 60. Re6+ {[%clk 1:09:19]} 60... Kg7 {[%clk 0:48:00]} 61. Kf5
{[%clk 1:09:38]} 61... Kf7 {[%clk 0:46:45]} 62. Re5 {[%clk 1:09:58]} 62... Kg7
{[%clk 0:47:00]} 63. Re7+ {[%clk 1:10:21]} 63... Kg8 {[%clk 0:47:00]} 64. Kf6
{[%clk 1:10:42]} 64... Kf8 {[%clk 0:47:18]} 65. Re6 {[%clk 1:11:02]} 65... Kg8
{[%clk 0:47:37]} 66. Re8+ {[%clk 1:11:29]} 66... Kh7 {[%clk 0:47:54]} 67. Rf8
{[%clk 1:11:55]} 67... Kh6 {[%clk 0:48:11]} 68. Rh8# {[%clk 1:12:20]} 1-0

[Variant "Standard"]
[Site "Europe Echecs"]

[Event "Championnat du monde jeunes U10"]
[Date "2024.11.15"]
[White "Friscic, Jakov"]
[Black "Ten Dam, Bram"]
[WhiteElo "1685"]
[BlackElo "2012"]
[Round "1.14"]
[Result "0-1"]
[TimeControl "5400+30"]

1. d4 {[%clk 1:30:58]} 1... d5 {[%clk 1:30:55]} 2. c4 {[%clk 1:31:19]} 2... c6
{[%clk 1:31:20]} 3. cxd5 {[%clk 1:31:44]} 3... cxd5 {[%clk 1:31:46]} 4. Nc3
{[%clk 1:32:03]} 4... Nc6 {[%clk 1:32:09]} 5. Bf4 {[%clk 1:32:27]} 5... e5
{[%clk 1:32:29]} 6. dxe5 {[%clk 1:25:54]} 6... d4 {[%clk 1:32:49]} 7. Nb1 {[%clk
1:25:44]} 7... Bf5 {[%clk 1:28:40]} 8. a3 {[%clk 1:24:02]} 8... Qb6 {[%clk
1:23:25]} 9. b3 {[%clk 1:19:29]} 9... O-O-O {[%clk 1:17:00]} 10. Nd2 {[%clk
1:15:09]} 10... Be6 {[%clk 1:14:00]} 11. Ngf3 {[%clk 1:11:39]} 11... Nge7 {[%clk
1:12:15]} 12. e4 {[%clk 1:03:44]} 12... d3 {[%clk 1:08:09]} 13. Qb1 {[%clk
0:56:02]} 13... Ng6 {[%clk 1:02:45]} 14. Bg5 {[%clk 0:54:05]} 14... Bc5 {[%clk
1:01:30]} 15. Bxd8 {[%clk 0:50:48]} 15... Bxf2+ {[%clk 1:00:44]} 16. Kd1 {[%clk
0:51:15]} 16... Rxd8 {[%clk 1:00:53]} 17. Nc4 {[%clk 0:40:53]} 17... Bxc4 {[%clk
0:58:32]} 18. bxc4 {[%clk 0:40:39]} 18... Qc7 {[%clk 0:51:32]} 19. Ra2 {[%clk
0:39:09]} 19... Be3 {[%clk 0:50:32]} 20. Rb2 {[%clk 0:34:57]} 20... Ngxe5 {[%clk
0:49:52]} 21. Nxe5 {[%clk 0:35:13]} 21... Nxe5 {[%clk 0:49:39]} 22. g3 {[%clk
0:35:01]} 22... Nxc4 {[%clk 0:48:52]} 23. Rb4 {[%clk 0:33:17]} 23... Nxa3 {[%clk
0:48:05]} 24. Bh3+ {[%clk 0:33:22]} 24... Kb8 {[%clk 0:47:17]} 25. Qb2 {[%clk
0:32:20]} 25... Qc2+ {[%clk 0:46:23]} 26. Qxc2 {[%clk 0:32:44]} 26... dxc2+
{[%clk 0:46:46]} 27. Ke2 {[%clk 0:33:06]} 27... Rd2+ {[%clk 0:45:47]} 28. Kxe3
{[%clk 0:33:09]} 28... Rd1 {[%clk 0:46:13]} 29. Rxd1 {[%clk 0:33:15]} 29...
cxd1=Q {[%clk 0:46:31]} 0-1

[Variant "Standard"]
[Site "Europe Echecs"]

[Event "Championnat du monde jeunes U10"]
[Date "2024.11.15"]
[White "Bolashakov, Nurali"]
[Black "Makhsatuly, Rakhim"]
[WhiteElo "2005"]
[BlackElo "1683"]
[Round "1.15"]
[Result "1-0"]
[TimeControl "5400+30"]

1. e4 {[%clk 1:30:54]} 1... c5 {[%clk 1:30:57]} 2. Nf3 {[%clk 1:31:14]} 2... Nc6
{[%clk 1:31:22]} 3. d4 {[%clk 1:31:30]} 3... cxd4 {[%clk 1:31:44]} 4. Nxd4
{[%clk 1:31:37]} 4... Nf6 {[%clk 1:32:08]} 5. Nc3 {[%clk 1:31:29]} 5... d6
{[%clk 1:32:08]} 6. Bg5 {[%clk 1:31:46]} 6... Bd7 {[%clk 1:32:24]} 7. Qd3 {[%clk
1:31:10]} 7... e6 {[%clk 1:31:29]} 8. O-O-O {[%clk 1:30:09]} 8... a6 {[%clk
1:31:30]} 9. h4 {[%clk 1:28:23]} 9... h6 {[%clk 1:30:57]} 10. Bd2 {[%clk
1:25:50]} 10... Qb6 {[%clk 1:26:29]} 11. Nxc6 {[%clk 1:23:30]} 11... Bxc6 {[%clk
1:25:43]} 12. Be3 {[%clk 1:22:30]} 12... Qc7 {[%clk 1:25:59]} 13. f3 {[%clk
1:20:57]} 13... O-O-O {[%clk 1:22:16]} 14. Qd2 {[%clk 1:18:00]} 14... d5 {[%clk
1:20:14]} 15. e5 {[%clk 1:16:42]} 15... Nh5 {[%clk 1:13:23]} 16. Ne2 {[%clk
0:53:44]} 16... Qxe5 {[%clk 1:04:07]} 17. Bb6 {[%clk 0:50:17]} 17... Rd7 {[%clk
1:01:37]} 18. Nd4 {[%clk 0:49:46]} 18... Qd6 {[%clk 0:49:08]} 19. Qc3 {[%clk
0:46:43]} 19... Ng3 {[%clk 0:47:51]} 20. Nxc6 {[%clk 0:44:13]} 20... Qxc6 {[%clk
0:37:03]} 21. Qxc6+ {[%clk 0:44:04]} 21... bxc6 {[%clk 0:37:27]} 22. Bxa6+
{[%clk 0:44:27]} 22... Kb8 {[%clk 0:37:53]} 23. Rh3 {[%clk 0:41:36]} 23... Bd6
{[%clk 0:36:25]} 24. a4 {[%clk 0:35:51]} 24... Nh5 {[%clk 0:34:09]} 25. Rhh1
{[%clk 0:34:16]} 25... e5 {[%clk 0:30:40]} 26. Rhe1 {[%clk 0:30:30]} 26... Nf4
{[%clk 0:28:08]} 27. g3 {[%clk 0:29:43]} 27... Ne6 {[%clk 0:28:31]} 28. a5
{[%clk 0:28:41]} 28... Nc5 {[%clk 0:25:58]} 29. Bf1 {[%clk 0:26:41]} 29... Na4
{[%clk 0:22:39]} 30. Bf2 {[%clk 0:26:15]} 30... Bb4 {[%clk 0:21:08]} 31. Rxe5
{[%clk 0:26:31]} 31... Bxa5 {[%clk 0:21:16]} 32. b3 {[%clk 0:23:06]} 32... Nc3
{[%clk 0:17:53]} 33. Rd3 {[%clk 0:22:42]} 33... Bc7 {[%clk 0:17:44]} 34. Re1
{[%clk 0:22:26]} 34... Ba5 {[%clk 0:15:37]} 35. Kb2 {[%clk 0:16:48]} 35... Nb5
{[%clk 0:14:54]} 36. Red1 {[%clk 0:16:38]} 36... Nd6 {[%clk 0:13:41]} 37. Bd4
{[%clk 0:16:27]} 37... Nf5 {[%clk 0:13:14]} 38. Bh3 {[%clk 0:16:09]} 38... Nxd4
{[%clk 0:12:07]} 39. Bxd7 {[%clk 0:16:27]} 39... Ne2 {[%clk 0:12:27]} 40. Re3
{[%clk 0:14:15]} 40... Kc7 {[%clk 0:11:23]} 41. Rxe2 {[%clk 0:13:37]} 41... Kxd7
{[%clk 0:11:42]} 42. c3 {[%clk 0:13:53]} 42... Bc7 {[%clk 0:11:47]} 43. f4
{[%clk 0:14:06]} 43... Rb8 {[%clk 0:10:14]} 44. Ra1 {[%clk 0:13:28]} 44... h5
{[%clk 0:09:39]} 45. Kc2 {[%clk 0:13:29]} 45... g6 {[%clk 0:08:48]} 46. b4
{[%clk 0:12:03]} 46... Bb6 {[%clk 0:06:20]} 47. Rae1 {[%clk 0:11:46]} 47... Kd6
{[%clk 0:06:42]} 48. c4 {[%clk 0:10:58]} 48... Bd8 {[%clk 0:04:40]} 49. Re8
{[%clk 0:09:43]} 49... Kd7 50. Kb3 {[%clk 0:09:25]} 50... dxc4+ {[%clk 0:01:50]}
51. Kxc4 {[%clk 0:09:46]} 51... Ra8 {[%clk 0:00:42]} 52. Rf8 {[%clk 0:09:41]}
52... f6 {[%clk 0:00:56]} 53. Rf7+ {[%clk 0:09:15]} 53... Kd6 {[%clk 0:00:40]}
54. Re8 {[%clk 0:08:30]} 54... Rb8 {[%clk 0:00:41]} 55. Rxf6+ {[%clk 0:08:17]}
55... Kd7 {[%clk 0:00:52]} 56. Rff8 {[%clk 0:07:55]} 56... Rc8 {[%clk 0:00:51]}
57. Rh8 {[%clk 0:08:09]} 57... Ra8 {[%clk 0:00:55]} 58. Reg8 {[%clk 0:08:32]}
58... Kc7 {[%clk 0:01:09]} 59. Rg7+ {[%clk 0:08:45]} 1-0

[Variant "Standard"]
[Site "Europe Echecs"]

[Event "Championnat du monde jeunes U10"]
[Date "2024.11.15"]
[White "Aghoyan, Gevorg"]
[Black "Ivanovic, Leonid"]
[WhiteElo "1682"]
[BlackElo "1990"]
[Round "1.16"]
[Result "0-1"]
[TimeControl "5400+30"]

1. e4 {[%clk 1:30:55]} 1... c5 {[%clk 1:30:40]} 2. Nf3 {[%clk 1:31:06]} 2... d6
{[%clk 1:30:24]} 3. d4 {[%clk 1:31:16]} 3... cxd4 {[%clk 1:30:06]} 4. Qxd4
{[%clk 1:31:25]} 4... Nc6 {[%clk 1:28:27]} 5. Bb5 {[%clk 1:31:12]} 5... a6
{[%clk 1:28:00]} 6. Bxc6+ {[%clk 1:30:57]} 6... bxc6 {[%clk 1:28:15]} 7. c4
{[%clk 1:25:06]} 7... e5 {[%clk 1:24:30]} 8. Qd3 {[%clk 1:24:14]} 8... Qc7
{[%clk 1:19:19]} 9. Nc3 {[%clk 1:20:16]} 9... Be7 {[%clk 1:16:59]} 10. O-O
{[%clk 1:18:19]} 10... h6 {[%clk 1:16:20]} 11. b4 {[%clk 1:12:40]} 11... Nf6
{[%clk 1:12:10]} 12. b5 {[%clk 1:05:44]} 12... axb5 {[%clk 1:11:09]} 13. cxb5
{[%clk 1:05:53]} 13... O-O {[%clk 1:11:25]} 14. Be3 {[%clk 1:01:23]} 14... cxb5
{[%clk 0:47:42]} 15. Nxb5 {[%clk 0:54:41]} 15... Qc6 {[%clk 0:47:50]} 16. Nd2
{[%clk 0:53:30]} 16... d5 {[%clk 0:45:41]} 17. exd5 {[%clk 0:49:02]} 17... Qxd5
{[%clk 0:45:40]} 18. Qxd5 {[%clk 0:44:21]} 18... Nxd5 {[%clk 0:46:06]} 19. Nc4
{[%clk 0:44:19]} 19... Ra4 {[%clk 0:39:34]} 20. Rfc1 {[%clk 0:40:37]} 20... Ba6
{[%clk 0:37:57]} 21. Ncd6 {[%clk 0:35:56]} 21... Nxe3 {[%clk 0:37:20]} 22. fxe3
{[%clk 0:36:01]} 22... Rb8 {[%clk 0:36:15]} 23. Nc3 {[%clk 0:29:59]} 23... Ra3
{[%clk 0:29:57]} 24. Nf5 {[%clk 0:28:13]} 24... Bf8 {[%clk 0:25:17]} 25. Ng3
{[%clk 0:23:27]} 25... Rb2 {[%clk 0:20:13]} 26. Nge4 {[%clk 0:21:18]} 26... Bb7
{[%clk 0:15:30]} 27. Nf2 {[%clk 0:16:28]} 27... Bb4 {[%clk 0:07:29]} 28. Ncd1
{[%clk 0:14:18]} 28... Re2 {[%clk 0:07:05]} 29. h4 {[%clk 0:13:41]} 29... Bd2
{[%clk 0:04:43]} 30. Rc2 {[%clk 0:12:10]} 30... Re1+ {[%clk 0:04:22]} 31. Kh2
{[%clk 0:12:19]} 31... Bxe3 {[%clk 0:04:12]} 32. Rb1 {[%clk 0:11:26]} 32... Bf4+
{[%clk 0:04:05]} 33. g3 {[%clk 0:11:38]} 33... Bxg3+ {[%clk 0:04:02]} 34. Kh3
{[%clk 0:11:53]} 34... Bxf2+ {[%clk 0:03:56]} 35. Kg4 {[%clk 0:11:49]} 35...
Ra4+ {[%clk 0:03:58]} 36. Kf5 {[%clk 0:11:47]} 36... g6+ {[%clk 0:04:06]} 37.
Kf6 {[%clk 0:12:09]} 37... Bxh4# 0-1

[Variant "Standard"]
[Site "Europe Echecs"]